[Event "Titled Tuesday Blitz March 15 Late 2022"]
[White "Tarigan, Gilbert Elroy"]
[Black "Awoki, Daniel Teidi"]
[WhiteFideId "7108133"]
[BlackFideId "2100827"]
[WhiteElo "1908"]
[BlackElo "2023"]
[Result "1-0"]
[Round "04"]
[TimeControl "180+1"]
[Date "2022.03.16"]
[WhiteClock "0:01:32"]
[BlackClock "0:00:01"]

1. Nf3 {[%clk 0:02:56]}  d5 {[%clk 0:02:59]} 2. g3 {[%clk 0:02:57]}  e6 {[%clk 0:02:59]} 3. Bg2 {[%clk 0:02:57]}  Nf6 {[%clk 0:03:00]} 4. O-O {[%clk 0:02:58]}  Be7 {[%clk 0:03:00]} 5. d3 {[%clk 0:02:58]}  O-O {[%clk 0:03:00]} 6. b3 {[%clk 0:02:59]}  c5 {[%clk 0:02:59]} 7. Bb2 {[%clk 0:03:00]}  Nc6 {[%clk 0:02:59]} 8. Nbd2 {[%clk 0:02:53]}  Re8 {[%clk 0:02:59]} 9. Ne5 {[%clk 0:02:52]}  Nxe5 {[%clk 0:02:54]} 10. Bxe5 {[%clk 0:02:53]}  Ng4 {[%clk 0:02:54]} 11. Bb2 {[%clk 0:02:53]}  Bf6 {[%clk 0:02:54]} 12. Bxf6 {[%clk 0:02:50]}  Nxf6 {[%clk 0:02:55]} 13. c4 {[%clk 0:02:50]}  Bd7 {[%clk 0:02:49]} 14. Qc2 {[%clk 0:02:49]}  b6 {[%clk 0:02:45]} 15. e4 {[%clk 0:02:42]}  dxe4 {[%clk 0:02:41]} 16. Nxe4 {[%clk 0:02:42]}  Nxe4 {[%clk 0:02:38]} 17. Bxe4 {[%clk 0:02:33]}  Rc8 {[%clk 0:02:37]} 18. Rad1 {[%clk 0:02:32]}  Bc6 {[%clk 0:02:33]} 19. d4 {[%clk 0:02:30]}  cxd4 {[%clk 0:02:30]} 20. Bxh7+ {[%clk 0:02:23]}  Kh8 {[%clk 0:02:25]} 21. Be4 {[%clk 0:02:23]}  Qf6 {[%clk 0:02:17]} 22. Bxc6 {[%clk 0:02:15]}  Rxc6 {[%clk 0:02:17]} 23. Qe4 {[%clk 0:02:15]}  Rd6 {[%clk 0:02:16]} 24. Rd3 {[%clk 0:02:10]}  Red8 {[%clk 0:02:16]} 25. f4 {[%clk 0:02:10]}  g6 {[%clk 0:01:59]} 26. Qe5 {[%clk 0:01:55]}  Kg7 {[%clk 0:01:56]} 27. Kg2 {[%clk 0:01:54]}  Rc6 {[%clk 0:01:31]} 28. Qe4 {[%clk 0:01:49]}  Rcd6 {[%clk 0:01:11]} 29. Rfd1 {[%clk 0:01:46]}  Qf5 {[%clk 0:01:01]} 30. Qe5+ {[%clk 0:01:40]}  Qxe5 {[%clk 0:00:23]} 31. fxe5 {[%clk 0:01:41]}  R6d7 {[%clk 0:00:24]} 32. Rf1 {[%clk 0:01:35]}  Rc8 {[%clk 0:00:20]} 33. Kf3 {[%clk 0:01:32]}  Rcd8 {[%clk 0:00:07]} 34. Ke4 {[%clk 0:01:32]}  Kg8 {[%clk 0:00:01]} 35. Rfd1 {[%clk 0:01:32]} 1-0


[Site "https://www.chess.com"]

[Event "Titled Tuesday Blitz March 15 Late 2022"]
[White "Van Foreest, Jorden"]
[Black "Bilych, Olexiy"]
[WhiteFideId "1039784"]
[BlackFideId "14156504"]
[WhiteElo "2609"]
[BlackElo "2176"]
[Result "1-0"]
[Round "04"]
[TimeControl "180+1"]
[Date "2022.03.15"]
[WhiteClock "0:01:37"]
[BlackClock "0:00:24"]

1. e4 {[%clk 0:03:00]}  c5 {[%clk 0:02:53]} 2. Nf3 {[%clk 0:03:00]}  d6 {[%clk 0:02:53]} 3. Bb5+ {[%clk 0:03:01]}  Nd7 {[%clk 0:02:53]} 4. O-O {[%clk 0:03:00]}  Nf6 {[%clk 0:02:53]} 5. Re1 {[%clk 0:03:01]}  a6 {[%clk 0:02:52]} 6. Bf1 {[%clk 0:03:00]}  g6 {[%clk 0:02:44]} 7. c3 {[%clk 0:02:55]}  Bg7 {[%clk 0:02:44]} 8. d4 {[%clk 0:02:56]}  O-O {[%clk 0:02:24]} 9. e5 {[%clk 0:02:55]}  Nd5 {[%clk 0:02:18]} 10. exd6 {[%clk 0:02:47]}  cxd4 {[%clk 0:02:06]} 11. c4 {[%clk 0:02:47]}  e5 {[%clk 0:01:58]} 12. cxd5 {[%clk 0:02:47]}  Qb6 {[%clk 0:01:58]} 13. b3 {[%clk 0:02:41]}  Qxd6 {[%clk 0:01:54]} 14. Ba3 {[%clk 0:02:42]}  Nc5 {[%clk 0:01:54]} 15. Nbd2 {[%clk 0:02:20]}  Qxd5 {[%clk 0:01:41]} 16. Rc1 {[%clk 0:02:18]}  b6 {[%clk 0:01:36]} 17. b4 {[%clk 0:02:12]}  Nd7 {[%clk 0:01:25]} 18. Bc4 {[%clk 0:02:12]}  Qd6 {[%clk 0:01:16]} 19. Ne4 {[%clk 0:02:12]}  Qe7 {[%clk 0:01:15]} 20. Bd5 {[%clk 0:02:09]}  Ra7 {[%clk 0:01:14]} 21. Qb3 {[%clk 0:02:01]}  Bb7 {[%clk 0:01:08]} 22. Bxb7 {[%clk 0:01:58]}  Rxb7 {[%clk 0:01:08]} 23. b5 {[%clk 0:01:59]}  Qd8 {[%clk 0:00:40]} 24. Bxf8 {[%clk 0:01:58]}  Nxf8 {[%clk 0:00:41]} 25. bxa6 {[%clk 0:01:58]}  Ra7 {[%clk 0:00:42]} 26. Qb5 {[%clk 0:01:43]}  Qd7 {[%clk 0:00:36]} 27. Qxd7 {[%clk 0:01:42]}  Nxd7 {[%clk 0:00:37]} 28. Rc8+ {[%clk 0:01:42]}  Bf8 {[%clk 0:00:36]} 29. Nxe5 {[%clk 0:01:41]}  Nxe5 {[%clk 0:00:33]} 30. Nf6+ {[%clk 0:01:42]}  Kg7 {[%clk 0:00:34]} 31. Ne8+ {[%clk 0:01:42]}  Kh6 {[%clk 0:00:34]} 32. Rxe5 {[%clk 0:01:43]}  Rxa6 {[%clk 0:00:34]} 33. Re2 {[%clk 0:01:40]}  Bb4 {[%clk 0:00:32]} 34. Rd8 {[%clk 0:01:41]}  Bc3 {[%clk 0:00:31]} 35. Nf6 {[%clk 0:01:38]}  d3 {[%clk 0:00:26]} 36. Ng4+ {[%clk 0:01:38]}  Kg5 {[%clk 0:00:25]} 37. Rxd3 {[%clk 0:01:39]}  Bg7 {[%clk 0:00:24]} 38. h3 {[%clk 0:01:37]} 1-0


[Site "https://www.chess.com"]

[Event "Titled Tuesday Blitz March 15 Late 2022"]
[White "Van den Dikkenberg, Erik"]
[Black "Plotnikov, Pavel"]
[WhiteFideId "1005880"]
[BlackFideId "4170342"]
[WhiteElo "2118"]
[BlackElo "2298"]
[Result "0-1"]
[Round "04"]
[TimeControl "180+1"]
[Date "2022.03.16"]
[WhiteClock "0:01:03"]
[BlackClock "0:01:01"]

1. e4 {[%clk 0:03:00]}  e6 {[%clk 0:02:59]} 2. d4 {[%clk 0:03:00]}  d5 {[%clk 0:03:00]} 3. e5 {[%clk 0:03:01]}  Ne7 {[%clk 0:02:59]} 4. c3 {[%clk 0:03:01]}  c5 {[%clk 0:03:00]} 5. Nf3 {[%clk 0:03:01]}  Nf5 {[%clk 0:02:59]} 6. Bd3 {[%clk 0:03:00]}  Nc6 {[%clk 0:02:59]} 7. O-O {[%clk 0:02:58]}  cxd4 {[%clk 0:02:57]} 8. Bxf5 {[%clk 0:02:58]}  exf5 {[%clk 0:02:57]} 9. cxd4 {[%clk 0:02:59]}  Be6 {[%clk 0:02:56]} 10. Bg5 {[%clk 0:02:58]}  Qb6 {[%clk 0:02:55]} 11. Nbd2 {[%clk 0:02:50]}  h6 {[%clk 0:02:54]} 12. Be3 {[%clk 0:02:46]}  g5 {[%clk 0:02:52]} 13. g3 {[%clk 0:02:45]}  Be7 {[%clk 0:02:51]} 14. Nb3 {[%clk 0:02:41]}  a5 {[%clk 0:02:42]} 15. Nc5 {[%clk 0:02:39]}  Bxc5 {[%clk 0:02:34]} 16. dxc5 {[%clk 0:02:39]}  Qc7 {[%clk 0:02:34]} 17. Nd4 {[%clk 0:02:36]}  O-O {[%clk 0:02:02]} 18. Nxc6 {[%clk 0:02:31]}  bxc6 {[%clk 0:02:00]} 19. Bd4 {[%clk 0:02:29]}  Rab8 {[%clk 0:01:57]} 20. Qh5 {[%clk 0:02:26]}  Kg7 {[%clk 0:01:53]} 21. h4 {[%clk 0:02:23]}  Qe7 {[%clk 0:01:35]} 22. hxg5 {[%clk 0:02:07]}  hxg5 {[%clk 0:01:34]} 23. Qe2 {[%clk 0:02:03]}  Rh8 {[%clk 0:01:30]} 24. Kg2 {[%clk 0:02:01]}  Rb4 {[%clk 0:01:24]} 25. Bc3 {[%clk 0:01:58]}  Re4 {[%clk 0:01:24]} 26. Qa6 {[%clk 0:01:54]}  d4 {[%clk 0:01:19]} 27. Bxa5 {[%clk 0:01:45]}  Bd5 {[%clk 0:01:18]} 28. f3 {[%clk 0:01:44]}  Re3 {[%clk 0:01:12]} 29. Bd2 {[%clk 0:01:34]}  Rxf3 {[%clk 0:01:12]} 30. Rxf3 {[%clk 0:01:33]}  g4 {[%clk 0:01:12]} 31. Bf4 {[%clk 0:01:22]}  Bxf3+ {[%clk 0:01:07]} 32. Kf2 {[%clk 0:01:19]}  Rh2+ {[%clk 0:01:06]} 33. Ke1 {[%clk 0:01:18]}  Rh1+ {[%clk 0:01:05]} 34. Kd2 {[%clk 0:01:18]}  Rxa1 {[%clk 0:01:05]} 35. Qc8 {[%clk 0:01:08]}  Rd1+ {[%clk 0:01:01]} 36. Kc2 {[%clk 0:01:03]}  Qxc5+ {[%clk 0:01:01]} 37. Kb3 {[%clk 0:01:04]}  Rd3+ {[%clk 0:01:00]} 38. Ka4 {[%clk 0:01:03]}  Qb5# {[%clk 0:01:01]} 0-1


[Site "https://www.chess.com"]

[Event "Titled Tuesday Blitz March 15 Late 2022"]
[White "Vovk, Orest"]
[Black "Hambleton, Aman"]
[WhiteFideId "14113490"]
[BlackFideId "2606577"]
[WhiteElo "2203"]
[BlackElo "2552"]
[Result "1/2-1/2"]
[Round "04"]
[TimeControl "180+1"]
[Date "2022.03.16"]
[WhiteClock "0:01:01"]
[BlackClock "0:00:08"]

1. h4 {[%clk 0:02:35]}  e5 {[%clk 0:02:49]} 2. h5 {[%clk 0:02:35]}  d5 {[%clk 0:02:48]} 3. h6 {[%clk 0:02:35]}  Nxh6 {[%clk 0:02:47]} 4. d4 {[%clk 0:02:35]}  exd4 {[%clk 0:02:43]} 5. Bxh6 {[%clk 0:02:36]}  gxh6 {[%clk 0:02:44]} 6. Qxd4 {[%clk 0:02:36]}  Rg8 {[%clk 0:02:44]} 7. Nc3 {[%clk 0:02:36]}  Be6 {[%clk 0:02:41]} 8. O-O-O {[%clk 0:02:34]}  Nc6 {[%clk 0:02:32]} 9. Qh4 {[%clk 0:02:28]}  d4 {[%clk 0:01:49]} 10. Nb5 {[%clk 0:02:06]}  Be7 {[%clk 0:01:11]} 11. Qh2 {[%clk 0:01:58]}  Rc8 {[%clk 0:01:11]} 12. Nf3 {[%clk 0:01:35]}  Qd5 {[%clk 0:00:33]} 13. Nxc7+ {[%clk 0:01:27]}  Rxc7 {[%clk 0:00:32]} 14. Qxc7 {[%clk 0:01:28]}  Qxa2 {[%clk 0:00:32]} 15. Qxb7 {[%clk 0:01:12]}  Qa1+ {[%clk 0:00:12]} 16. Kd2 {[%clk 0:01:12]}  Qa5+ {[%clk 0:00:13]} 17. Kc1 {[%clk 0:01:05]}  Qa1+ {[%clk 0:00:13]} 18. Kd2 {[%clk 0:01:05]}  Qa5+ {[%clk 0:00:13]} 19. Kc1 {[%clk 0:01:01]}  Qa1+ {[%clk 0:00:08]} 1/2-1/2


[Site "https://www.chess.com"]

[Event "Titled Tuesday Blitz March 15 Late 2022"]
[White "Weber, Samuel"]
[Black "Ambartsumova, Karina"]
[WhiteFideId "12924008"]
[BlackFideId "4166299"]
[WhiteElo "2215"]
[BlackElo "2262"]
[Result "1-0"]
[Round "04"]
[TimeControl "180+1"]
[Date "2022.03.16"]
[WhiteClock "0:00:05"]
[BlackClock "0:00:03"]

1. c4 {[%clk 0:03:00]}  e6 {[%clk 0:02:58]} 2. g3 {[%clk 0:03:01]}  Nf6 {[%clk 0:02:57]} 3. Bg2 {[%clk 0:03:01]}  d5 {[%clk 0:02:57]} 4. Nf3 {[%clk 0:03:01]}  dxc4 {[%clk 0:02:57]} 5. O-O {[%clk 0:03:01]}  c6 {[%clk 0:02:56]} 6. a4 {[%clk 0:02:47]}  a5 {[%clk 0:02:37]} 7. Na3 {[%clk 0:02:43]}  Be7 {[%clk 0:02:25]} 8. Nxc4 {[%clk 0:02:40]}  O-O {[%clk 0:02:26]} 9. d3 {[%clk 0:02:30]}  b5 {[%clk 0:02:25]} 10. axb5 {[%clk 0:02:19]}  cxb5 {[%clk 0:02:26]} 11. Nfe5 {[%clk 0:02:18]}  Ra6 {[%clk 0:02:22]} 12. Na3 {[%clk 0:02:11]}  b4 {[%clk 0:02:04]} 13. Nac4 {[%clk 0:02:08]}  Bc5 {[%clk 0:01:59]} 14. e3 {[%clk 0:01:48]}  Qe7 {[%clk 0:01:58]} 15. d4 {[%clk 0:01:45]}  Ba7 {[%clk 0:01:58]} 16. Rxa5 {[%clk 0:01:26]}  Nd5 {[%clk 0:01:42]} 17. Bd2 {[%clk 0:01:17]}  f6 {[%clk 0:01:34]} 18. Nd3 {[%clk 0:01:15]}  Rxa5 {[%clk 0:01:30]} 19. Nxa5 {[%clk 0:01:16]}  Ba6 {[%clk 0:01:30]} 20. Qb3 {[%clk 0:01:10]}  Qc7 {[%clk 0:01:06]} 21. Bxd5 {[%clk 0:01:05]}  exd5 {[%clk 0:01:06]} 22. Bxb4 {[%clk 0:01:00]}  Rd8 {[%clk 0:00:49]} 23. Rc1 {[%clk 0:00:58]}  Qd7 {[%clk 0:00:44]} 24. Nc5 {[%clk 0:00:49]}  Bxc5 {[%clk 0:00:44]} 25. Rxc5 {[%clk 0:00:40]}  Qh3 {[%clk 0:00:42]} 26. Qd1 {[%clk 0:00:32]}  Nd7 {[%clk 0:00:29]} 27. Rxd5 {[%clk 0:00:25]}  Rb8 {[%clk 0:00:29]} 28. Bc3 {[%clk 0:00:20]}  Nb6 {[%clk 0:00:24]} 29. Rh5 {[%clk 0:00:18]}  Qe6 {[%clk 0:00:20]} 30. d5 {[%clk 0:00:15]}  Qf7 {[%clk 0:00:20]} 31. d6 {[%clk 0:00:14]}  Nd7 {[%clk 0:00:20]} 32. Nc6 {[%clk 0:00:13]}  Ra8 {[%clk 0:00:17]} 33. Ne7+ {[%clk 0:00:14]}  Kh8 {[%clk 0:00:17]} 34. Ra5 {[%clk 0:00:07]}  Bb7 {[%clk 0:00:13]} 35. Rxa8+ {[%clk 0:00:07]}  Bxa8 {[%clk 0:00:14]} 36. Qa1 {[%clk 0:00:07]}  Nb6 {[%clk 0:00:12]} 37. Qa7 {[%clk 0:00:06]}  Qb3 {[%clk 0:00:03]} 38. Qb8+ {[%clk 0:00:05]} 1-0


[Site "https://www.chess.com"]

[Event "Titled Tuesday Blitz March 15 Late 2022"]
[White "Xiong, Jeffery"]
[Black "Tari, Aryan"]
[WhiteFideId "2047640"]
[BlackFideId "1510045"]
[WhiteElo "2984"]
[BlackElo "2904"]
[Result "0-1"]
[Round "04"]
[TimeControl "180+1"]
[Date "2022.03.15"]
[WhiteClock "0:00:08"]
[BlackClock "0:00:26"]

1. d4 {[%clk 0:03:00]}  d5 {[%clk 0:02:58]} 2. c4 {[%clk 0:03:01]}  e6 {[%clk 0:02:58]} 3. Nf3 {[%clk 0:02:58]}  Nf6 {[%clk 0:02:58]} 4. Nc3 {[%clk 0:02:57]}  h6 {[%clk 0:02:54]} 5. g3 {[%clk 0:02:52]}  Bd6 {[%clk 0:02:53]} 6. Bg2 {[%clk 0:02:52]}  O-O {[%clk 0:02:54]} 7. O-O {[%clk 0:02:53]}  Nc6 {[%clk 0:02:54]} 8. b3 {[%clk 0:02:48]}  dxc4 {[%clk 0:02:54]} 9. bxc4 {[%clk 0:02:49]}  e5 {[%clk 0:02:55]} 10. e3 {[%clk 0:02:45]}  Re8 {[%clk 0:02:50]} 11. h3 {[%clk 0:02:43]}  exd4 {[%clk 0:02:46]} 12. exd4 {[%clk 0:02:44]}  Bf5 {[%clk 0:02:46]} 13. c5 {[%clk 0:02:12]}  Bf8 {[%clk 0:02:46]} 14. Bf4 {[%clk 0:02:12]}  Nb4 {[%clk 0:02:41]} 15. Qb3 {[%clk 0:01:56]}  a5 {[%clk 0:02:36]} 16. Ne5 {[%clk 0:01:36]}  Be6 {[%clk 0:02:36]} 17. Qd1 {[%clk 0:01:36]}  Nbd5 {[%clk 0:02:35]} 18. Ne2 {[%clk 0:01:32]}  b6 {[%clk 0:02:16]} 19. Rc1 {[%clk 0:01:31]}  a4 {[%clk 0:02:04]} 20. Re1 {[%clk 0:01:28]}  a3 {[%clk 0:01:55]} 21. Kh2 {[%clk 0:01:27]}  Nb4 {[%clk 0:01:37]} 22. Nc3 {[%clk 0:01:13]}  Nxa2 {[%clk 0:01:36]} 23. Nxa2 {[%clk 0:01:13]}  Bxa2 {[%clk 0:01:37]} 24. Bxa8 {[%clk 0:01:12]}  Qxa8 {[%clk 0:01:37]} 25. Ra1 {[%clk 0:00:50]}  Bd5 {[%clk 0:01:37]} 26. Nd3 {[%clk 0:00:50]}  Rxe1 {[%clk 0:01:31]} 27. Qxe1 {[%clk 0:00:51]}  bxc5 {[%clk 0:01:19]} 28. dxc5 {[%clk 0:00:52]}  Ne4 {[%clk 0:01:02]} 29. Qc1 {[%clk 0:00:44]}  Qa6 {[%clk 0:00:50]} 30. Rxa3 {[%clk 0:00:29]}  Qf6 {[%clk 0:00:51]} 31. Qe3 {[%clk 0:00:26]}  g5 {[%clk 0:00:47]} 32. Bxc7 {[%clk 0:00:25]}  Nd2 {[%clk 0:00:42]} 33. Qe8 {[%clk 0:00:08]}  Qf3 {[%clk 0:00:26]} 0-1


[Site "https://www.chess.com"]

[Event "Titled Tuesday Blitz March 15 Late 2022"]
[White "Yedidia, Daniel"]
[Black "Lewtak, Damian"]
[WhiteFideId "30905907"]
[BlackFideId "1141724"]
[WhiteElo "2501"]
[BlackElo "2362"]
[Result "1-0"]
[Round "04"]
[TimeControl "180+1"]
[Date "2022.03.16"]
[WhiteClock "0:00:17"]
[BlackClock "0:00:15"]

1. d4 {[%clk 0:02:55]}  d5 {[%clk 0:02:59]} 2. c4 {[%clk 0:02:54]}  c6 {[%clk 0:02:56]} 3. Nf3 {[%clk 0:02:55]}  Nf6 {[%clk 0:02:56]} 4. Nc3 {[%clk 0:02:55]}  e6 {[%clk 0:02:52]} 5. e3 {[%clk 0:02:55]}  Nbd7 {[%clk 0:02:35]} 6. Bd3 {[%clk 0:02:55]}  Bb4 {[%clk 0:02:35]} 7. O-O {[%clk 0:02:55]}  O-O {[%clk 0:02:35]} 8. Qb3 {[%clk 0:02:50]}  a5 {[%clk 0:02:33]} 9. c5 {[%clk 0:02:49]}  e5 {[%clk 0:02:24]} 10. Be2 {[%clk 0:02:29]}  Re8 {[%clk 0:02:14]} 11. Re1 {[%clk 0:02:18]}  Ne4 {[%clk 0:01:59]} 12. Nxe4 {[%clk 0:02:11]}  dxe4 {[%clk 0:01:53]} 13. Nd2 {[%clk 0:02:12]}  exd4 {[%clk 0:01:53]} 14. exd4 {[%clk 0:02:03]}  Nf6 {[%clk 0:01:53]} 15. Bc4 {[%clk 0:01:56]}  Be6 {[%clk 0:01:31]} 16. a3 {[%clk 0:01:55]}  Bxd2 {[%clk 0:01:26]} 17. Bxd2 {[%clk 0:01:56]}  Qxd4 {[%clk 0:01:25]} 18. Bxe6 {[%clk 0:01:55]}  Rxe6 {[%clk 0:01:26]} 19. Qxb7 {[%clk 0:01:49]}  Rae8 {[%clk 0:01:19]} 20. Be3 {[%clk 0:01:37]}  Qe5 {[%clk 0:01:18]} 21. h3 {[%clk 0:01:35]}  Nd5 {[%clk 0:01:13]} 22. Rad1 {[%clk 0:01:34]}  Rg6 {[%clk 0:01:12]} 23. b4 {[%clk 0:01:15]}  axb4 {[%clk 0:01:07]} 24. axb4 {[%clk 0:01:16]}  Nc3 {[%clk 0:01:05]} 25. Rd7 {[%clk 0:00:55]}  Qh5 {[%clk 0:00:42]} 26. Rd6 {[%clk 0:00:46]}  Rxd6 {[%clk 0:00:34]} 27. cxd6 {[%clk 0:00:46]}  Qd5 {[%clk 0:00:34]} 28. Qd7 {[%clk 0:00:34]}  Rf8 {[%clk 0:00:26]} 29. Qe7 {[%clk 0:00:31]}  Qe6 {[%clk 0:00:15]} 30. Qxe6 {[%clk 0:00:27]}  fxe6 {[%clk 0:00:15]} 31. Bg5 {[%clk 0:00:17]}  h6 {[%clk 0:00:15]} 32. Be7 {[%clk 0:00:17]} 1-0


[Site "https://www.chess.com"]

[Event "Titled Tuesday Blitz March 15 Late 2022"]
[White "Zhou, Qiyu"]
[Black "Winkels, Marcel"]
[WhiteFideId "505161"]
[BlackFideId "1003887"]
[WhiteElo "1925"]
[BlackElo "1900"]
[Result "1-0"]
[Round "04"]
[TimeControl "180+1"]
[Date "2022.03.16"]
[WhiteClock "0:00:41"]
[BlackClock "0:00:14"]

1. e4 {[%clk 0:02:55]}  c5 {[%clk 0:02:58]} 2. Nf3 {[%clk 0:02:55]}  d6 {[%clk 0:02:59]} 3. d4 {[%clk 0:02:55]}  cxd4 {[%clk 0:02:59]} 4. Nxd4 {[%clk 0:02:56]}  Nf6 {[%clk 0:02:59]} 5. Nc3 {[%clk 0:02:56]}  a6 {[%clk 0:03:00]} 6. Be3 {[%clk 0:02:55]}  e5 {[%clk 0:02:58]} 7. Nb3 {[%clk 0:02:55]}  Be6 {[%clk 0:02:58]} 8. h3 {[%clk 0:02:53]}  Be7 {[%clk 0:02:51]} 9. Qf3 {[%clk 0:02:51]}  Nc6 {[%clk 0:02:40]} 10. O-O-O {[%clk 0:02:50]}  O-O {[%clk 0:02:38]} 11. g4 {[%clk 0:02:48]}  b5 {[%clk 0:02:32]} 12. g5 {[%clk 0:02:47]}  Nd7 {[%clk 0:02:30]} 13. h4 {[%clk 0:02:44]}  Rc8 {[%clk 0:02:17]} 14. Kb1 {[%clk 0:02:37]}  Qc7 {[%clk 0:02:05]} 15. Bd3 {[%clk 0:02:28]}  Nb4 {[%clk 0:02:03]} 16. Rd2 {[%clk 0:02:05]}  Nxd3 {[%clk 0:02:00]} 17. cxd3 {[%clk 0:02:05]}  Nc5 {[%clk 0:01:39]} 18. Nxc5 {[%clk 0:01:55]}  dxc5 {[%clk 0:01:38]} 19. h5 {[%clk 0:01:54]}  b4 {[%clk 0:01:23]} 20. Nd5 {[%clk 0:01:49]}  Bxd5 {[%clk 0:01:22]} 21. exd5 {[%clk 0:01:50]}  c4 {[%clk 0:01:13]} 22. dxc4 {[%clk 0:01:48]}  Qxc4 {[%clk 0:01:12]} 23. d6 {[%clk 0:01:42]}  Bd8 {[%clk 0:01:09]} 24. Qd5 {[%clk 0:01:15]}  Qxd5 {[%clk 0:00:58]} 25. Rxd5 {[%clk 0:01:16]}  f6 {[%clk 0:00:58]} 26. g6 {[%clk 0:01:13]}  h6 {[%clk 0:00:57]} 27. d7 {[%clk 0:01:08]}  Rc4 {[%clk 0:00:40]} 28. Bc5 {[%clk 0:01:05]}  a5 {[%clk 0:00:33]} 29. Bxf8 {[%clk 0:01:01]}  Kxf8 {[%clk 0:00:33]} 30. Rc1 {[%clk 0:00:58]}  Rxc1+ {[%clk 0:00:28]} 31. Kxc1 {[%clk 0:00:59]}  Ke7 {[%clk 0:00:28]} 32. Kc2 {[%clk 0:00:58]}  Ke6 {[%clk 0:00:28]} 33. Rd1 {[%clk 0:00:57]}  f5 {[%clk 0:00:26]} 34. Kb3 {[%clk 0:00:57]}  e4 {[%clk 0:00:25]} 35. Kc4 {[%clk 0:00:57]}  Ke5 {[%clk 0:00:24]} 36. Kc5 {[%clk 0:00:55]}  f4 {[%clk 0:00:24]} 37. Kc6 {[%clk 0:00:56]}  e3 {[%clk 0:00:23]} 38. fxe3 {[%clk 0:00:54]}  fxe3 {[%clk 0:00:23]} 39. Kb7 {[%clk 0:00:48]}  Ke4 {[%clk 0:00:21]} 40. Kc8 {[%clk 0:00:41]}  Bh4 {[%clk 0:00:16]} 41. Rh1 {[%clk 0:00:38]}  Bg5 {[%clk 0:00:14]} 42. d8=Q {[%clk 0:00:38]}  Bxd8 {[%clk 0:00:13]} 43. Kxd8 {[%clk 0:00:38]}  Kd3 {[%clk 0:00:13]} 44. Ke7 {[%clk 0:00:38]}  e2 {[%clk 0:00:13]} 45. Kf7 {[%clk 0:00:39]}  Kd2 {[%clk 0:00:14]} 46. Kxg7 {[%clk 0:00:39]}  e1=Q {[%clk 0:00:14]} 47. Rxe1 {[%clk 0:00:40]}  Kxe1 {[%clk 0:00:15]} 48. Kxh6 {[%clk 0:00:40]}  Kd2 {[%clk 0:00:16]} 49. g7 {[%clk 0:00:41]}  Kc2 {[%clk 0:00:15]} 50. g8=Q {[%clk 0:00:42]}  Kxb2 {[%clk 0:00:16]} 51. Qb3+ {[%clk 0:00:42]}  Ka1 {[%clk 0:00:15]} 52. Kg5 {[%clk 0:00:41]}  a4 {[%clk 0:00:16]} 53. Qxa4 {[%clk 0:00:41]}  b3 {[%clk 0:00:14]} 54. axb3+ {[%clk 0:00:41]} 1-0


[Site "https://www.chess.com"]

[Event "Titled Tuesday Blitz March 15 Late 2022"]
[White "Abdyzhapar, Asylbek"]
[Black "Paravyan, David"]
[WhiteFideId "13800337"]
[BlackFideId "4194985"]
[WhiteElo "2331"]
[BlackElo "2569"]
[Result "0-1"]
[Round "05"]
[TimeControl "180+1"]
[Date "2022.03.15"]
[WhiteClock "0:01:29"]
[BlackClock "0:00:14"]

1. d4 {[%clk 0:03:00]}  Nf6 {[%clk 0:02:59]} 2. c4 {[%clk 0:03:00]}  g6 {[%clk 0:03:00]} 3. Nc3 {[%clk 0:02:57]}  d5 {[%clk 0:03:01]} 4. cxd5 {[%clk 0:02:49]}  Nxd5 {[%clk 0:03:02]} 5. e4 {[%clk 0:02:50]}  Nxc3 {[%clk 0:03:02]} 6. bxc3 {[%clk 0:02:50]}  Bg7 {[%clk 0:03:02]} 7. Bb5+ {[%clk 0:02:51]}  c6 {[%clk 0:03:00]} 8. Ba4 {[%clk 0:02:51]}  O-O {[%clk 0:03:01]} 9. Ne2 {[%clk 0:02:51]}  b5 {[%clk 0:02:24]} 10. Bb3 {[%clk 0:02:50]}  a5 {[%clk 0:02:23]} 11. O-O {[%clk 0:02:48]}  a4 {[%clk 0:02:23]} 12. Bc2 {[%clk 0:02:48]}  c5 {[%clk 0:02:24]} 13. Be3 {[%clk 0:02:47]}  cxd4 {[%clk 0:02:18]} 14. cxd4 {[%clk 0:02:47]}  Nd7 {[%clk 0:02:09]} 15. Rb1 {[%clk 0:02:46]}  Ba6 {[%clk 0:02:08]} 16. Bd3 {[%clk 0:02:44]}  Qa5 {[%clk 0:01:44]} 17. a3 {[%clk 0:02:43]}  Rfb8 {[%clk 0:01:40]} 18. Bd2 {[%clk 0:02:38]}  Qd8 {[%clk 0:01:40]} 19. Bb4 {[%clk 0:02:36]}  Nb6 {[%clk 0:01:37]} 20. d5 {[%clk 0:02:36]}  Nc4 {[%clk 0:01:38]} 21. Bxc4 {[%clk 0:02:34]}  bxc4 {[%clk 0:01:38]} 22. Nd4 {[%clk 0:02:34]}  c3 {[%clk 0:01:20]} 23. Nc6 {[%clk 0:02:33]}  Qc7 {[%clk 0:01:16]} 24. Re1 {[%clk 0:02:22]}  Bb5 {[%clk 0:01:01]} 25. Nxe7+ {[%clk 0:02:16]}  Kh8 {[%clk 0:01:01]} 26. Rc1 {[%clk 0:02:16]}  Bd7 {[%clk 0:00:40]} 27. e5 {[%clk 0:02:10]}  Rxb4 {[%clk 0:00:38]} 28. axb4 {[%clk 0:02:06]}  Bxe5 {[%clk 0:00:36]} 29. d6 {[%clk 0:01:59]}  Qxd6 {[%clk 0:00:18]} 30. Qxd6 {[%clk 0:01:51]}  Bxd6 {[%clk 0:00:18]} 31. Nd5 {[%clk 0:01:51]}  Be6 {[%clk 0:00:16]} 32. Nxc3 {[%clk 0:01:43]}  Bxb4 {[%clk 0:00:16]} 33. Re4 {[%clk 0:01:43]}  Bxc3 {[%clk 0:00:10]} 34. Rxc3 {[%clk 0:01:43]}  a3 {[%clk 0:00:11]} 35. Re1 {[%clk 0:01:43]}  a2 {[%clk 0:00:11]} 36. Ra1 {[%clk 0:01:44]}  Rb8 {[%clk 0:00:12]} 37. Rcc1 {[%clk 0:01:43]}  Rb2 {[%clk 0:00:12]} 38. h3 {[%clk 0:01:41]}  Bf5 {[%clk 0:00:12]} 39. g4 {[%clk 0:01:41]}  Be4 {[%clk 0:00:12]} 40. Rf1 {[%clk 0:01:37]}  Kg7 {[%clk 0:00:12]} 41. Kh2 {[%clk 0:01:36]}  Rb1 {[%clk 0:00:11]} 42. Rxa2 {[%clk 0:01:32]}  Rxf1 {[%clk 0:00:11]} 43. Kg3 {[%clk 0:01:33]}  g5 {[%clk 0:00:10]} 44. Re2 {[%clk 0:01:30]}  Bg6 {[%clk 0:00:10]} 45. Rd2 {[%clk 0:01:30]}  Rb1 {[%clk 0:00:10]} 46. f3 {[%clk 0:01:30]}  Rb3 {[%clk 0:00:11]} 47. Rf2 {[%clk 0:01:30]}  h5 {[%clk 0:00:11]} 48. h4 {[%clk 0:01:30]}  hxg4 {[%clk 0:00:10]} 49. Kxg4 {[%clk 0:01:31]}  Rb4+ {[%clk 0:00:11]} 50. Kg3 {[%clk 0:01:28]}  gxh4+ {[%clk 0:00:11]} 51. Kh2 {[%clk 0:01:29]}  Bf5 {[%clk 0:00:11]} 52. Rg2+ {[%clk 0:01:29]}  Kf6 {[%clk 0:00:12]} 53. Rd2 {[%clk 0:01:29]}  Rc4 {[%clk 0:00:13]} 54. Rb2 {[%clk 0:01:28]}  Rc2+ {[%clk 0:00:13]} 55. Rxc2 {[%clk 0:01:28]}  Bxc2 {[%clk 0:00:14]} 56. Kh3 {[%clk 0:01:29]}  Kg5 {[%clk 0:00:14]} 0-1


[Site "https://www.chess.com"]